[Event "Early-Titled-Tuesday-Blitz-April-02-2024"]
[Site "Chess.com"]
[Date "2024.04.02"]
[Round "4"]
[White "valik3504"]
[Black "Revan_2002"]
[Result "0-1"]
[WhiteElo "2559"]
[BlackElo "2723"]
[TimeControl "180+1"]
[EndTime "8:40:50 PDT"]
[Termination "Revan_2002 won by resignation"]

1. Nf3 {[%clk 0:03:00.9]} 1... Nf6 {[%clk 0:02:58.3]} 2. c4 {[%clk 0:03:01]}
2... e6 {[%clk 0:02:56.5]} 3. d4 {[%clk 0:03:00.5]} 3... d5 {[%clk 0:02:53.3]}
4. e3 {[%clk 0:02:59.6]} 4... Bd6 {[%clk 0:02:42.2]} 5. b3 {[%clk 0:02:44.7]}
5... O-O {[%clk 0:02:41.8]} 6. Bd3 {[%clk 0:02:44.4]} 6... b6 {[%clk 0:02:41.8]}
7. O-O {[%clk 0:02:44.2]} 7... Bb7 {[%clk 0:02:42.3]} 8. Bb2 {[%clk 0:02:44.3]}
8... Nbd7 {[%clk 0:02:42.2]} 9. Nc3 {[%clk 0:02:44.7]} 9... a6 {[%clk
0:02:42.2]} 10. Rc1 {[%clk 0:02:44.6]} 10... c5 {[%clk 0:02:42]} 11. cxd5 {[%clk
0:02:39.5]} 11... exd5 {[%clk 0:02:35.2]} 12. Qe2 {[%clk 0:02:28.9]} 12... Re8
{[%clk 0:02:34.3]} 13. Rfd1 {[%clk 0:02:27.8]} 13... Qe7 {[%clk 0:02:30.2]} 14.
Na4 {[%clk 0:01:32.7]} 14... c4 {[%clk 0:02:24.4]} 15. Bb1 {[%clk 0:01:14.3]}
15... b5 {[%clk 0:02:22.5]} 16. Nc5 {[%clk 0:01:13.8]} 16... Nxc5 {[%clk
0:02:06.5]} 17. dxc5 {[%clk 0:01:14.7]} 17... Bxc5 {[%clk 0:02:06.2]} 18. Nh4
{[%clk 0:01:02.8]} 18... g6 {[%clk 0:01:51]} 19. Nf3 {[%clk 0:00:48.5]} 19...
Ba3 {[%clk 0:01:46]} 20. Nd4 {[%clk 0:00:38.3]} 20... Bxb2 {[%clk 0:01:45.2]}
21. Qxb2 {[%clk 0:00:39.2]} 21... Qe5 {[%clk 0:01:42.2]} 22. h3 {[%clk
0:00:30.6]} 22... Rac8 {[%clk 0:01:38.1]} 23. Qa3 {[%clk 0:00:21.2]} 23... Rc7
{[%clk 0:01:21.1]} 24. Qa5 {[%clk 0:00:16]} 24... Rec8 {[%clk 0:01:20.7]} 25. b4
{[%clk 0:00:14.8]} 25... Qe7 {[%clk 0:01:15.9]} 26. a4 {[%clk 0:00:13.8]} 26...
bxa4 {[%clk 0:01:14.3]} 27. Qxa4 {[%clk 0:00:14.7]} 27... Nd7 {[%clk 0:01:13.7]}
28. Bc2 {[%clk 0:00:13.3]} 28... Ne5 {[%clk 0:01:10.9]} 29. Ra1 {[%clk
0:00:12.2]} 29... h5 {[%clk 0:01:09.2]} 30. Rdb1 {[%clk 0:00:10.5]} 30... Nc6
{[%clk 0:00:56.7]} 31. Nxc6 {[%clk 0:00:07.8]} 31... Rxc6 {[%clk 0:00:57.6]} 32.
b5 {[%clk 0:00:08.2]} 32... axb5 {[%clk 0:00:58.5]} 33. Qxb5 {[%clk 0:00:08.7]}
33... R6c7 {[%clk 0:00:59.2]} 34. Ra7 {[%clk 0:00:06.9]} 34... Bc6 {[%clk
0:00:56]} 35. Rxc7 {[%clk 0:00:07.2]} 35... Qxc7 {[%clk 0:00:56]} 36. Qc5 {[%clk
0:00:06.7]} 36... Qd7 {[%clk 0:00:44.9]} 37. Qd4 {[%clk 0:00:05.6]} 37... Qd6
{[%clk 0:00:37.3]} 38. Rb6 {[%clk 0:00:05.6]} 38... Rb8 {[%clk 0:00:34.1]} 39.
Ra6 {[%clk 0:00:05.2]} 39... Ra8 {[%clk 0:00:31.5]} 40. Rxa8+ {[%clk 0:00:03.1]}
40... Bxa8 {[%clk 0:00:31.6]} 41. e4 {[%clk 0:00:03.6]} 41... Qf4 {[%clk
0:00:22.1]} 42. f3 {[%clk 0:00:02.7]} 42... Qc1+ {[%clk 0:00:21.7]} 43. Bd1
{[%clk 0:00:03.1]} 43... c3 {[%clk 0:00:20.7]} 44. Qd3 {[%clk 0:00:02.9]} 44...
dxe4 {[%clk 0:00:15.1]} 45. fxe4 {[%clk 0:00:03.4]} 45... Bxe4 {[%clk
0:00:14.2]} 46. Qd8+ {[%clk 0:00:03.6]} 46... Kh7 {[%clk 0:00:12.6]} 47. Kh2
{[%clk 0:00:02.8]} 47... Qf4+ {[%clk 0:00:11.6]} 48. Kg1 {[%clk 0:00:02.8]}
48... c2 {[%clk 0:00:11.2]} 49. Bxc2 {[%clk 0:00:03.4]} 49... Bxc2 {[%clk
0:00:11.1]} 50. Qb6 {[%clk 0:00:03.6]} 50... Be4 {[%clk 0:00:10.4]} 51. Qb2
{[%clk 0:00:03.5]} 51... Qe3+ {[%clk 0:00:07]} 52. Kh2 {[%clk 0:00:03.7]} 52...
Qf4+ {[%clk 0:00:06]} 53. Kg1 {[%clk 0:00:04.2]} 53... Qf5 {[%clk 0:00:06.5]}
54. Qe2 {[%clk 0:00:04.3]} 54... Qe6 {[%clk 0:00:06.8]} 55. Qf2 {[%clk
0:00:04.3]} 55... Bd5 {[%clk 0:00:07.3]} 56. Kh2 {[%clk 0:00:04.2]} 56... Qe4
{[%clk 0:00:07.6]} 57. Kg1 {[%clk 0:00:03.9]} 57... Qxg2+ {[%clk 0:00:07.8]} 58.
Qxg2 {[%clk 0:00:04.8]} 58... Bxg2 {[%clk 0:00:08]} 59. Kxg2 {[%clk 0:00:05.7]}
59... g5 {[%clk 0:00:08.7]} 60. Kg3 {[%clk 0:00:06.1]} 60... Kg6 {[%clk
0:00:09.4]} 61. Kf3 {[%clk 0:00:06.5]} 61... Kf5 {[%clk 0:00:09.1]} 62. Ke3
{[%clk 0:00:07.2]} 62... g4 {[%clk 0:00:08.7]} 63. h4 {[%clk 0:00:07.3]} 63...
Ke5 {[%clk 0:00:09]} 64. Ke2 {[%clk 0:00:06.7]} 64... f5 {[%clk 0:00:09.9]} 65.
Kf2 {[%clk 0:00:07.3]} 65... f4 {[%clk 0:00:10.8]} 66. Ke2 {[%clk 0:00:08]}
66... Ke4 {[%clk 0:00:11.7]} 67. Kf2 {[%clk 0:00:08.5]} 67... f3 {[%clk
0:00:12.6]} 68. Kg3 {[%clk 0:00:08.5]} 68... Ke3 {[%clk 0:00:13.1]} 69. Kh2
{[%clk 0:00:09.2]} 69... f2 {[%clk 0:00:12.6]} 70. Kg2 {[%clk 0:00:08.6]} 70...
Ke2 {[%clk 0:00:12.3]} 71. Kg3 {[%clk 0:00:07.9]} 71... f1=Q {[%clk 0:00:11.9]}
72. Kh2 {[%clk 0:00:08.6]} 72... Qh3+ {[%clk 0:00:11.6]} 73. Kg1 {[%clk
0:00:09]} 73... Qg3+ {[%clk 0:00:11.5]} 74. Kh1 {[%clk 0:00:09.4]} 74... Qf3+
{[%clk 0:00:11.6]} 75. Kg1 {[%clk 0:00:09]} 75... Qe3+ {[%clk 0:00:09.5]} 76.
Kg2 {[%clk 0:00:08]} 76... Qh3+ {[%clk 0:00:08.4]} 77. Kg1 {[%clk 0:00:08]}
77... Qxh4 {[%clk 0:00:09]} 78. Kg2 {[%clk 0:00:08.2]} 78... Qf6 {[%clk
0:00:09]} 79. Kg1 {[%clk 0:00:08]} 79... Qf2+ {[%clk 0:00:08.6]} 80. Kh1 {[%clk
0:00:08.5]} 80... Qe3 {[%clk 0:00:08.8]} 81. Kg2 {[%clk 0:00:07.8]} 81... Ke1
{[%clk 0:00:09.1]} 82. Kh1 {[%clk 0:00:07.8]} 82... Kf2 {[%clk 0:00:09.5]} 0-1

[Event "Early-Titled-Tuesday-Blitz-April-02-2024"]
[Site "Chess.com"]
[Date "2024.04.02"]
[Round "4"]
[White "TitanChess666"]
[Black "ladytitan"]
[Result "1-0"]
[WhiteElo "2515"]
[BlackElo "2226"]
[TimeControl "180+1"]
[EndTime "8:40:53 PDT"]
[Termination "TitanChess666 won by checkmate"]

1. e4 {[%clk 0:03:00.9]} 1... c6 {[%clk 0:02:55]} 2. d4 {[%clk 0:03:00]} 2... d5
{[%clk 0:02:54]} 3. f3 {[%clk 0:03:00.9]} 3... dxe4 {[%clk 0:02:51.9]} 4. fxe4
{[%clk 0:03:01.1]} 4... e5 {[%clk 0:02:51.3]} 5. Nf3 {[%clk 0:03:01.6]} 5... Bg4
{[%clk 0:02:50.8]} 6. c3 {[%clk 0:02:56.5]} 6... Nd7 {[%clk 0:02:27.6]} 7. Bd3
{[%clk 0:02:55.7]} 7... Ngf6 {[%clk 0:02:24.5]} 8. O-O {[%clk 0:02:55.8]} 8...
Bd6 {[%clk 0:02:22.5]} 9. Nbd2 {[%clk 0:02:55.9]} 9... O-O {[%clk 0:02:22.1]}
10. Qc2 {[%clk 0:02:56.4]} 10... Re8 {[%clk 0:02:13.2]} 11. h3 {[%clk
0:02:47.6]} 11... Bh5 {[%clk 0:02:11.4]} 12. a4 {[%clk 0:02:44.5]} 12... a5
{[%clk 0:02:04.4]} 13. Nc4 {[%clk 0:02:38.4]} 13... Bc7 {[%clk 0:02:00.6]} 14.
Bg5 {[%clk 0:02:34.8]} 14... b5 {[%clk 0:01:42]} 15. axb5 {[%clk 0:02:29.2]}
15... cxb5 {[%clk 0:01:42.9]} 16. Ncxe5 {[%clk 0:02:28.5]} 16... Nxe5 {[%clk
0:01:37]} 17. Nxe5 {[%clk 0:02:28.2]} 17... Bxe5 {[%clk 0:01:30.9]} 18. dxe5
{[%clk 0:02:29.1]} 18... Rxe5 {[%clk 0:01:30.5]} 19. Bf4 {[%clk 0:02:13.8]}
19... Qb6+ {[%clk 0:01:23.4]} 20. Kh1 {[%clk 0:02:12.4]} 20... Ree8 {[%clk
0:01:19.6]} 21. e5 {[%clk 0:02:12.5]} 21... Nd5 {[%clk 0:01:14.7]} 22. Bxh7+
{[%clk 0:02:12.8]} 22... Kh8 {[%clk 0:01:14.7]} 23. Be4 {[%clk 0:02:06.3]} 23...
Nxf4 {[%clk 0:01:09.4]} 24. Bxa8 {[%clk 0:01:53.8]} 24... Ne2 {[%clk 0:00:50.4]}
25. Bf3 {[%clk 0:00:53.7]} 25... Ng3+ {[%clk 0:00:45.2]} 26. Kh2 {[%clk
0:00:54.1]} 26... Nxf1+ {[%clk 0:00:42.7]} 27. Rxf1 {[%clk 0:00:55]} 27... Bxf3
{[%clk 0:00:35.7]} 28. Rxf3 {[%clk 0:00:55.9]} 28... Rxe5 {[%clk 0:00:28.1]} 29.
Rxf7 {[%clk 0:00:54.6]} 29... Qd6 {[%clk 0:00:25.4]} 30. Kg1 {[%clk 0:00:37.3]}
30... Re1+ {[%clk 0:00:18.6]} 31. Rf1 {[%clk 0:00:37.8]} 31... Qc5+ {[%clk
0:00:15.4]} 32. Qf2 {[%clk 0:00:38.4]} 32... Rxf1+ {[%clk 0:00:12.4]} 33. Kxf1
{[%clk 0:00:38]} 33... Qc4+ {[%clk 0:00:12.5]} 34. Qe2 {[%clk 0:00:37.3]} 34...
Qb3 {[%clk 0:00:11.5]} 35. Kg1 {[%clk 0:00:35.6]} 35... a4 {[%clk 0:00:11.2]}
36. Qe8+ {[%clk 0:00:34.4]} 36... Kh7 {[%clk 0:00:11.2]} 37. Qe4+ {[%clk
0:00:34.6]} 37... Kh8 {[%clk 0:00:09.9]} 38. Qb4 {[%clk 0:00:32.1]} 38... Qd1+
{[%clk 0:00:09.5]} 39. Kh2 {[%clk 0:00:32]} 39... Qd5 {[%clk 0:00:08.1]} 40. h4
{[%clk 0:00:22.3]} 40... Qe5+ {[%clk 0:00:08.2]} 41. Kh3 {[%clk 0:00:21.5]}
41... Qf5+ {[%clk 0:00:07.9]} 42. Qg4 {[%clk 0:00:16.9]} 42... Qd3+ {[%clk
0:00:07.8]} 43. Qg3 {[%clk 0:00:14.8]} 43... Qf5+ {[%clk 0:00:06.9]} 44. Kh2
{[%clk 0:00:14.8]} 44... Qd5 {[%clk 0:00:05.9]} 45. Qf2 {[%clk 0:00:11.6]} 45...
Qe5+ {[%clk 0:00:05.6]} 46. g3 {[%clk 0:00:11.6]} 46... Qd5 {[%clk 0:00:06]} 47.
Kh3 {[%clk 0:00:10.9]} 47... Qe6+ {[%clk 0:00:06]} 48. Kg2 {[%clk 0:00:11.1]}
48... Qd5+ {[%clk 0:00:05.8]} 49. Qf3 {[%clk 0:00:11.6]} 49... Qb3 {[%clk
0:00:05.7]} 50. Qe2 {[%clk 0:00:10.2]} 50... Qd5+ {[%clk 0:00:06.1]} 51. Kf2
{[%clk 0:00:10.5]} 51... Qc5+ {[%clk 0:00:06.1]} 52. Qe3 {[%clk 0:00:10.2]}
52... Qd5 {[%clk 0:00:06]} 53. Ke2 {[%clk 0:00:09.2]} 53... Qc4+ {[%clk
0:00:06.4]} 54. Kd2 {[%clk 0:00:09.1]} 54... Qb3 {[%clk 0:00:06.9]} 55. Qe8+
{[%clk 0:00:08.3]} 55... Kh7 {[%clk 0:00:06.9]} 56. Qe4+ {[%clk 0:00:08.9]}
56... Kh8 {[%clk 0:00:06.6]} 57. Qb4 {[%clk 0:00:08.9]} 57... Qd5+ {[%clk
0:00:06.3]} 58. Qd4 {[%clk 0:00:08.1]} 58... Qb3 {[%clk 0:00:06.2]} 59. Kc1
{[%clk 0:00:08]} 59... a3 {[%clk 0:00:06.4]} 60. Qd8+ {[%clk 0:00:06.6]} 60...
Kh7 {[%clk 0:00:06.8]} 61. Qd3+ {[%clk 0:00:07.2]} 61... Kh8 {[%clk 0:00:07.3]}
62. bxa3 {[%clk 0:00:07.9]} 62... Qxa3+ {[%clk 0:00:07.3]} 63. Kd2 {[%clk
0:00:08.8]} 63... Qa2+ {[%clk 0:00:07.4]} 64. Qc2 {[%clk 0:00:08.4]} 64... Qc4
{[%clk 0:00:07.5]} 65. Qd3 {[%clk 0:00:07.7]} 65... Qa2+ {[%clk 0:00:07.6]} 66.
Ke3 {[%clk 0:00:08.4]} 66... Qe6+ {[%clk 0:00:07.9]} 67. Kf3 {[%clk 0:00:08.6]}
67... Qf7+ {[%clk 0:00:07.5]} 68. Kg2 {[%clk 0:00:08.9]} 68... Qb7+ {[%clk
0:00:07.5]} 69. Kh2 {[%clk 0:00:09.4]} 69... Qc6 {[%clk 0:00:07.1]} 70. h5
{[%clk 0:00:09.7]} 70... Qc5 {[%clk 0:00:04.8]} 71. Qf3 {[%clk 0:00:08.9]} 71...
Qc4 {[%clk 0:00:04.3]} 72. g4 {[%clk 0:00:09]} 72... Qc5 {[%clk 0:00:04]} 73.
Kh3 {[%clk 0:00:08.3]} 73... Qc4 {[%clk 0:00:04]} 74. g5 {[%clk 0:00:06.2]}
74... b4 {[%clk 0:00:03.4]} 75. cxb4 {[%clk 0:00:06]} 75... Qxb4 {[%clk
0:00:03.9]} 76. g6 {[%clk 0:00:06.2]} 76... Qb8 {[%clk 0:00:01.8]} 77. Qf7
{[%clk 0:00:03.8]} 77... Qc8+ {[%clk 0:00:02]} 78. Kh4 {[%clk 0:00:04.1]} 78...
Qd8+ {[%clk 0:00:01.9]} 79. Kg4 {[%clk 0:00:04.6]} 79... Qd4+ {[%clk 0:00:02]}
80. Qf4 {[%clk 0:00:04.5]} 80... Qd7+ {[%clk 0:00:02.2]} 81. Qf5 {[%clk
0:00:03.7]} 81... Qd4+ {[%clk 0:00:02.4]} 82. Kg3 {[%clk 0:00:03.9]} 82... Qc3+
{[%clk 0:00:02.5]} 83. Qf3 {[%clk 0:00:04.1]} 83... Qc6 {[%clk 0:00:02.7]} 84.
Qf8# {[%clk 0:00:03.5]} 1-0

[Event "Early-Titled-Tuesday-Blitz-April-02-2024"]
[Site "Chess.com"]
[Date "2024.04.02"]
[Round "4"]
[White "NovoselovRoman"]
[Black "chito89"]
[Result "0-1"]
[WhiteElo "2598"]
[BlackElo "2809"]
[TimeControl "180+1"]
[EndTime "8:41:10 PDT"]
[Termination "chito89 won by resignation"]

1. d4 {[%clk 0:02:50.1]} 1... Nf6 {[%clk 0:02:52.3]} 2. Nc3 {[%clk 0:02:44.1]}
2... d5 {[%clk 0:02:48.8]} 3. Bf4 {[%clk 0:02:43.4]} 3... a6 {[%clk 0:02:48.6]}
4. e3 {[%clk 0:02:42.9]} 4... c5 {[%clk 0:02:42.3]} 5. Nf3 {[%clk 0:02:42.6]}
5... cxd4 {[%clk 0:02:41.5]} 6. exd4 {[%clk 0:02:42.6]} 6... Nc6 {[%clk
0:02:42]} 7. Bd3 {[%clk 0:02:39.7]} 7... Bg4 {[%clk 0:02:13]} 8. Be2 {[%clk
0:02:32.6]} 8... e6 {[%clk 0:02:07.8]} 9. Ne5 {[%clk 0:02:31.2]} 9... Bxe2
{[%clk 0:01:45.2]} 10. Nxe2 {[%clk 0:02:32.1]} 10... Qb6 {[%clk 0:01:44.5]} 11.
O-O {[%clk 0:02:27.2]} 11... Rc8 {[%clk 0:01:40.1]} 12. Rb1 {[%clk 0:01:15.9]}
12... Be7 {[%clk 0:01:23.3]} 13. c3 {[%clk 0:01:11.6]} 13... Nh5 {[%clk
0:01:10.7]} 14. Be3 {[%clk 0:01:07.1]} 14... Bd6 {[%clk 0:00:41.1]} 15. Nd3
{[%clk 0:00:41.8]} 15... Qc7 {[%clk 0:00:25.5]} 16. Ng3 {[%clk 0:00:41.9]} 16...
Nf6 {[%clk 0:00:21.3]} 17. Qf3 {[%clk 0:00:41.2]} 17... h5 {[%clk 0:00:18.7]}
18. Bf4 {[%clk 0:00:41.3]} 18... h4 {[%clk 0:00:17.2]} 19. Ne2 {[%clk
0:00:41.4]} 19... Ne4 {[%clk 0:00:16.6]} 20. Bxd6 {[%clk 0:00:39.9]} 20... Qxd6
{[%clk 0:00:17.5]} 21. Rbd1 {[%clk 0:00:39.7]} 21... g5 {[%clk 0:00:14.7]} 22.
Qe3 {[%clk 0:00:35.1]} 22... Rg8 {[%clk 0:00:12.1]} 23. f3 {[%clk 0:00:35.2]}
23... Nf6 {[%clk 0:00:12.1]} 24. Nc5 {[%clk 0:00:34.4]} 24... b6 {[%clk
0:00:07.2]} 25. Nd3 {[%clk 0:00:32.5]} 25... Ne7 {[%clk 0:00:06.9]} 26. Ne5
{[%clk 0:00:30.2]} 26... Nf5 {[%clk 0:00:07.3]} 27. Qd3 {[%clk 0:00:30.9]} 27...
b5 {[%clk 0:00:07.5]} 28. Rde1 {[%clk 0:00:30.1]} 28... Qb6 {[%clk 0:00:06.7]}
29. Nc1 {[%clk 0:00:28.2]} 29... b4 {[%clk 0:00:06.1]} 30. Nb3 {[%clk
0:00:21.5]} 30... a5 {[%clk 0:00:06]} 31. Nc5 {[%clk 0:00:21.7]} 31... bxc3
{[%clk 0:00:05.5]} 32. bxc3 {[%clk 0:00:21.9]} 32... Rxc5 {[%clk 0:00:03.2]} 33.
dxc5 {[%clk 0:00:22.1]} 33... Qxc5+ {[%clk 0:00:04.1]} 34. Rf2 {[%clk
0:00:19.7]} 34... Kf8 {[%clk 0:00:01.8]} 35. Ng4 {[%clk 0:00:15.1]} 35... Nh5
{[%clk 0:00:01.2]} 36. Ne3 {[%clk 0:00:13.9]} 36... Nf4 {[%clk 0:00:01.6]} 37.
Qd2 {[%clk 0:00:14.2]} 37... Nd6 {[%clk 0:00:01.9]} 38. Kh1 {[%clk 0:00:13.1]}
38... Ke7 {[%clk 0:00:01.6]} 39. Rff1 {[%clk 0:00:11.4]} 39... f6 {[%clk
0:00:01.9]} 40. Qf2 {[%clk 0:00:08]} 40... Kf7 {[%clk 0:00:01.8]} 41. Nd1 {[%clk
0:00:07.4]} 41... Qxf2 {[%clk 0:00:02.7]} 42. Nxf2 {[%clk 0:00:06.9]} 42... Rc8
{[%clk 0:00:03.6]} 43. Rc1 {[%clk 0:00:07]} 43... Nc4 {[%clk 0:00:04]} 44. Rfe1
{[%clk 0:00:05.7]} 44... Na3 {[%clk 0:00:03.7]} 45. g3 {[%clk 0:00:05.4]} 45...
hxg3 {[%clk 0:00:03.6]} 46. hxg3 {[%clk 0:00:06.3]} 46... Ng6 {[%clk 0:00:04.4]}
47. Kg2 {[%clk 0:00:06.8]} 47... Nb5 {[%clk 0:00:04.7]} 48. Re3 {[%clk
0:00:06.7]} 48... Ne5 {[%clk 0:00:04.3]} 49. Nd3 {[%clk 0:00:05.8]} 49... Nc4
{[%clk 0:00:04.8]} 50. Ree1 {[%clk 0:00:06.2]} 50... Nbd6 {[%clk 0:00:04.4]} 51.
Rb1 {[%clk 0:00:05.7]} 51... Na3 {[%clk 0:00:04.7]} 52. Rb3 {[%clk 0:00:05.6]}
52... Nac4 {[%clk 0:00:05.3]} 53. Rc1 {[%clk 0:00:06.2]} 53... Kg6 {[%clk
0:00:05.7]} 54. Kf2 {[%clk 0:00:06.3]} 54... Nf5 {[%clk 0:00:06]} 55. g4 {[%clk
0:00:06.5]} 55... Ne7 {[%clk 0:00:05.1]} 56. Rb7 {[%clk 0:00:06.5]} 56... Nc6
{[%clk 0:00:05.6]} 57. Nc5 {[%clk 0:00:06.2]} 57... N6e5 {[%clk 0:00:05.2]} 58.
Nxe6 {[%clk 0:00:06.2]} 58... Nd3+ {[%clk 0:00:05.3]} 59. Kg3 {[%clk 0:00:06.1]}
59... Nxc1 {[%clk 0:00:06.2]} 60. Rg7+ {[%clk 0:00:06.1]} 60... Kh6 {[%clk
0:00:06.7]} 61. Rf7 {[%clk 0:00:06.9]} 61... Kg6 {[%clk 0:00:07.2]} 62. Rg7+
{[%clk 0:00:07.1]} 62... Kh6 {[%clk 0:00:07.7]} 63. Rf7 {[%clk 0:00:07.7]} 63...
Ne2+ {[%clk 0:00:08.6]} 64. Kg2 {[%clk 0:00:07.6]} 64... Nf4+ {[%clk 0:00:09.2]}
65. Nxf4 {[%clk 0:00:07.9]} 65... gxf4 {[%clk 0:00:08.9]} 66. Rxf6+ {[%clk
0:00:08.8]} 66... Kg7 {[%clk 0:00:09.2]} 67. Rxf4 {[%clk 0:00:09.1]} 67... Rb8
{[%clk 0:00:09.2]} 68. Kg3 {[%clk 0:00:07]} 68... Rb2 {[%clk 0:00:08.1]} 69. Rd4
{[%clk 0:00:07.6]} 69... Nb6 {[%clk 0:00:08.1]} 70. a4 {[%clk 0:00:07.1]} 70...
Ra2 {[%clk 0:00:07.6]} 71. g5 {[%clk 0:00:08]} 71... Rxa4 {[%clk 0:00:07.9]} 72.
Rd1 {[%clk 0:00:08.1]} 72... Rc4 {[%clk 0:00:08.1]} 73. f4 {[%clk 0:00:08.4]}
73... a4 {[%clk 0:00:08.3]} 74. Kg4 {[%clk 0:00:08.7]} 74... a3 {[%clk
0:00:08.8]} 75. Ra1 {[%clk 0:00:08.2]} 75... Rxc3 {[%clk 0:00:08.7]} 76. f5
{[%clk 0:00:08.8]} 76... Rc4+ {[%clk 0:00:08.7]} 77. Kh5 {[%clk 0:00:09.1]}
77... Ra4 {[%clk 0:00:08.5]} 78. f6+ {[%clk 0:00:09.6]} 78... Kf7 {[%clk
0:00:09.1]} 79. Rf1 {[%clk 0:00:09.3]} 79... a2 {[%clk 0:00:08.7]} 80. g6+
{[%clk 0:00:09.8]} 80... Ke6 {[%clk 0:00:09.1]} 81. f7 {[%clk 0:00:09.6]} 81...
Nd7 {[%clk 0:00:09.2]} 82. g7 {[%clk 0:00:09.2]} 82... a1=Q {[%clk 0:00:08.1]}
83. Rxa1 {[%clk 0:00:08.9]} 83... Rxa1 {[%clk 0:00:09]} 84. g8=Q {[%clk
0:00:09.5]} 84... Nf6+ {[%clk 0:00:09.4]} 85. Kh4 {[%clk 0:00:07.1]} 85... Rh1+
{[%clk 0:00:09.7]} 86. Kg3 {[%clk 0:00:07.5]} 86... Rg1+ {[%clk 0:00:10.1]} 87.
Kf2 {[%clk 0:00:07.9]} 87... Rxg8 {[%clk 0:00:10.7]} 88. fxg8=Q+ {[%clk
0:00:08.4]} 88... Nxg8 {[%clk 0:00:11.6]} 89. Ke3 {[%clk 0:00:08.9]} 89... Ke5
{[%clk 0:00:12.1]} 90. Kd3 {[%clk 0:00:09.6]} 90... Nf6 {[%clk 0:00:12.6]} 91.
Ke3 {[%clk 0:00:10.2]} 91... d4+ {[%clk 0:00:13.5]} 92. Kd3 {[%clk 0:00:10.8]}
92... Kd5 {[%clk 0:00:13.9]} 93. Ke2 {[%clk 0:00:11.7]} 93... Ke4 {[%clk
0:00:14.8]} 94. Kd2 {[%clk 0:00:12.6]} 94... d3 {[%clk 0:00:15.7]} 95. Ke1
{[%clk 0:00:13.5]} 95... Ke3 {[%clk 0:00:16.4]} 96. Kd1 {[%clk 0:00:14.4]} 96...
d2 {[%clk 0:00:17.2]} 97. Kc2 {[%clk 0:00:14.1]} 97... Ke2 {[%clk 0:00:18.1]}
98. Kb2 {[%clk 0:00:15]} 98... d1=Q {[%clk 0:00:18.8]} 0-1